bitfinex/quotes_BTCUSD_20250505
["timestamp","ask_amount","ask_price","bid_price","bid_amount"]
[1746465488927,0.59407901,94400.0,94399.0,0.001]
[1746465489114,0.59407901,94400.0,94399.0,0.003]
[1746465489244,0.59407901,94400.0,94399.0,0.002]
[1746465489439,0.610694,94400.0,94399.0,0.002]
[1746465489689,0.610694,94400.0,94399.0,0.003]
[1746465489888,0.6404757,94400.0,94399.0,0.001]
[1746465490099,0.610694,94400.0,94399.0,0.001]
[1746465490315,0.612694,94400.0,94399.0,0.001]
[1746465491054,0.64246165,94400.0,94399.0,0.001]
[1746465491343,0.55187338,94396.0,94395.0,0.05002184]
[1746465491508,0.58337338,94396.0,94395.0,0.05002184]
[1746465492704,0.58737338,94396.0,94395.0,0.05002184]
[1746465493307,0.58737338,94396.0,94395.0,0.04302184]
[1746465493524,0.34,94395.0,94394.0,0.35044]
[1746465493724,0.3703,94395.0,94394.0,0.35044]
[1746465494716,0.3733,94395.0,94394.0,0.35044]
[1746465494948,0.3743,94395.0,94394.0,0.35044]
[1746465495139,0.3733,94395.0,94394.0,0.35044]
[1746465495342,0.3713,94395.0,94394.0,0.35044]
[1746465495745,0.3743,94395.0,94394.0,0.35044]
[1746465497247,0.58617562,94395.0,94394.0,0.35044]
[1746465497374,0.58317562,94395.0,94394.0,0.35044]
[1746465497577,0.58217562,94395.0,94394.0,0.35044]
[1746465497779,0.58517562,94395.0,94394.0,0.35044]
[1746465497974,0.3733,94395.0,94360.0,0.29685903]
[1746465498339,0.21195085,94362.0,94360.0,0.08490541]
[1746465498486,0.21195197,94361.0,94360.0,0.08490541]
[1746465499499,0.21195197,94361.0,94360.0,0.08890541]
[1746465499698,0.2285707,94361.0,94360.0,0.08895087]
[1746465500641,0.01661873,94361.0,94360.0,0.29690508]
[1746465500781,0.01661873,94361.0,94360.0,0.10115087]
[1746465500987,0.01861873,94361.0,94360.0,0.10515087]
[1746465501222,0.01861873,94361.0,94360.0,0.12015087]
[1746465501638,0.2305707,94361.0,94360.0,0.03524546]
[1746465501885,0.2305707,94361.0,94360.0,0.02024546]
[1746465502473,0.2305707,94361.0,94360.0,0.00504546]
[1746465504077,0.2460707,94361.0,94360.0,0.00504546]
[1746465504762,0.2610707,94361.0,94360.0,0.00504546]
[1746465504965,0.2460707,94361.0,94360.0,0.00504546]
[1746465505268,0.2610707,94361.0,94360.0,0.00504546]
[1746465505894,0.24445197,94361.0,94360.0,0.00504546]
[1746465506560,0.24345197,94361.0,94360.0,0.00404546]
[1746465507117,0.24245197,94361.0,94360.0,4.546e-05]
[1746465507500,0.24345197,94361.0,94360.0,0.00304546]
[1746465507907,0.24345197,94361.0,94360.0,0.00104546]
[1746465507908,0.24245197,94361.0,94360.0,0.00104546]
[1746465508388,0.24345197,94361.0,94360.0,0.00304546]
[1746465509058,0.6000721,94361.0,94360.0,0.00304546]
[1746465510318,0.5990721,94361.0,94360.0,4.546e-05]
[1746465510492,0.2590721,94361.0,94360.0,0.00104546]
[1746465510694,0.2500721,94361.0,94360.0,0.00104546]
[1746465510893,0.2315721,94361.0,94360.0,0.00104546]
[1746465511243,0.2315721,94361.0,94360.0,4.546e-05]
[1746465511455,0.21195421,94360.0,94359.0,0.34456546]
[1746465511646,0.21208435,94360.0,94359.0,0.34456546]
[1746465513555,0.21308435,94360.0,94359.0,0.34556546]
[1746465514042,0.21208435,94360.0,94359.0,0.34556546]
[1746465514167,0.21208435,94360.0,94359.0,0.34456546]
[1746465514370,0.21308435,94360.0,94359.0,0.34656546]
[1746465514796,0.21208435,94360.0,94359.0,0.34456546]
[1746465515018,0.21208435,94360.0,94359.0,0.34656546]
[1746465515253,0.21308435,94360.0,94359.0,0.34656546]
[1746465517022,0.00113014,94360.0,94359.0,0.55852192]
[1746465517223,0.00113014,94360.0,94359.0,0.24595646]
[1746465518122,0.00113014,94360.0,94359.0,0.0178]
[1746465518320,0.21308435,94360.0,94359.0,0.002]
[1746465518543,0.01059827,94355.0,94353.0,0.01454085]
[1746465518969,0.22256543,94355.0,94353.0,0.01454085]
[1746465519377,0.01059793,94358.0,94355.0,0.21196544]
[1746465519558,0.21196994,94353.0,94348.0,0.01454085]
[1746465519758,0.0105986,94352.0,94350.0,0.21197588]
[1746465519957,0.21197668,94350.0,94348.0,0.01454085]
[1746465520534,0.21198117,94348.0,94347.0,0.36518085]
[1746465521014,0.21198117,94348.0,94347.0,0.35064]
[1746465522615,0.21198117,94348.0,94347.0,0.35364]
[1746465523457,0.21198117,94348.0,94347.0,0.35464]
[1746465523458,0.21298117,94348.0,94347.0,0.35464]
[1746465523733,0.001,94348.0,94347.0,0.35464]
[1746465523932,0.001,94348.0,94347.0,0.56662342]
[1746465525901,0.001,94348.0,94347.0,0.35464]
[1746465526351,0.21298117,94348.0,94347.0,0.35464]
[1746465526939,0.21298117,94348.0,94347.0,0.004]
[1746465529851,0.22960225,94348.0,94347.0,0.004]
[1746465530179,0.01762108,94348.0,94347.0,0.004]
[1746465530373,0.22960225,94348.0,94347.0,0.004]
[1746465531205,0.01762108,94348.0,94347.0,0.23052427]
[1746465531409,0.01762108,94348.0,94347.0,0.01854085]
[1746465531809,0.01762108,94348.0,94347.0,0.23052427]
[1746465532466,0.22960225,94348.0,94347.0,0.01854085]
[1746465533145,0.01762108,94348.0,94347.0,0.01854085]
[1746465533358,0.22960225,94348.0,94347.0,0.01854085]
[1746465533789,0.01762108,94348.0,94347.0,0.23052427]
[1746465536143,0.001,94348.0,94347.0,0.24672427]
[1746465536406,0.001,94348.0,94347.0,0.26212427]
[1746465539346,0.001,94348.0,94347.0,0.32849917]
[1746465539347,0.01749263,94348.0,94347.0,0.32849917]
[1746465542047,0.01749263,94348.0,94347.0,0.26212427]
[1746465543252,0.01749263,94348.0,94347.0,0.31005611]
[1746465543737,0.00013014,94360.0,94347.0,0.31005611]
[1746465543738,0.00013014,94360.0,94359.0,0.21195646]
[1746465544449,0.01674923,94360.0,94359.0,0.21195646]
[1746465544676,0.21195912,94358.0,94355.0,0.01454085]
[1746465544844,0.22257769,94350.0,94348.0,0.01454085]
[1746465545049,0.21197892,94349.0,94347.0,0.05193184]
[1746465545274,0.21197259,94352.0,94349.0,0.21197704]
[1746465545427,0.01059827,94355.0,94351.0,0.21197248]
[1746465545625,0.22256582,94356.0,94353.0,0.21196807]
[1746465545828,0.222567,94354.0,94351.0,0.21197225]
[1746465546302,0.21197008,94353.0,94351.0,0.21097225]
[1746465546504,0.222567,94354.0,94351.0,0.21097225]
[1746465546848,0.01059827,94355.0,94352.0,0.21197044]
[1746465547049,0.22256561,94355.0,94352.0,0.21197044]
[1746465547224,0.21196782,94354.0,94352.0,0.21197044]
[1746465547795,0.21147781,94354.0,94351.0,0.21197298]
[1746465547928,0.22207619,94354.0,94353.0,0.001]
[1746465548580,0.001,94354.0,94353.0,0.001]
[1746465548982,0.21296769,94354.0,94353.0,0.001]
[1746465549241,0.21197173,94353.0,94350.0,0.21197246]
[1746465549447,0.22257033,94353.0,94352.0,0.002]
[1746465549673,0.21199465,94342.0,94341.0,0.35064]
[1746465549810,0.22258911,94345.0,94341.0,0.56263667]
[1746465550006,0.0105995,94344.0,94342.0,0.21199425]
[1746465550430,0.21197902,94349.0,94344.0,0.21198971]
[1746465550609,0.0105986,94352.0,94343.0,0.01059962]
[1746465550822,0.01059872,94351.0,94348.0,0.21197944]
[1746465551149,0.01059905,94348.0,94345.0,0.21198791]
[1746465552458,0.22258022,94348.0,94345.0,0.21098791]
[1746465552666,0.22258022,94348.0,94345.0,0.20998791]
[1746465553027,0.01059939,94345.0,94342.0,0.21199284]
[1746465554174,0.22258783,94345.0,94342.0,0.21199284]
[1746465555054,0.2119903,94344.0,94342.0,0.21199284]
[1746465555263,0.22358783,94345.0,94342.0,0.21699284]
[1746465555681,0.002,94345.0,94343.0,0.2119911]
[1746465555854,0.2225812,94348.0,94344.0,0.21199016]
[1746465556061,0.21197668,94350.0,94341.0,0.35064]
[1746465556259,0.22257795,94349.0,94346.0,0.20998361]
[1746465556974,0.001,94348.0,94346.0,0.20898361]
[1746465557180,0.001,94348.0,94347.0,0.21198342]
[1746465558175,0.01059872,94351.0,94349.0,0.211978]
[1746465558401,0.22257103,94352.0,94349.0,0.211978]
[1746465558637,0.22257103,94352.0,94350.0,0.21197668]
[1746465559203,0.0151,94349.0,94348.0,0.21198095]
[1746465559626,0.0161,94350.0,94349.0,0.21197892]
[1746465559831,0.01059872,94351.0,94349.0,0.21197892]
[1746465560136,0.01059872,94351.0,94350.0,0.008]
[1746465560341,0.001,94352.0,94351.0,0.21197443]
[1746465560736,0.001,94352.0,94350.0,0.004]
[1746465560965,0.22959408,94352.0,94350.0,0.004]
[1746465561304,0.01762135,94352.0,94350.0,0.004]
[1746465561821,0.22257315,94351.0,94348.0,0.21198059]
[1746465562020,0.22257315,94351.0,94349.0,0.003]
[1746465562242,0.01159872,94351.0,94349.0,0.21997755]
[1746465562423,0.01159872,94351.0,94349.0,0.21697755]
[1746465562621,0.01159872,94351.0,94350.0,0.003]
[1746465562622,0.22257513,94351.0,94350.0,0.003]
[1746465562822,0.22257589,94350.0,94347.0,0.21197933]
[1746465563044,0.22257589,94350.0,94348.0,0.005]
[1746465563362,0.23847589,94350.0,94349.0,0.004]
[1746465563564,0.22258022,94348.0,94344.0,0.21198981]
[1746465563715,0.22258022,94348.0,94342.0,0.01454085]
[1746465563716,0.0105995,94344.0,94342.0,0.01454085]
[1746465563915,0.01059905,94348.0,94345.0,0.21198573]
[1746465564231,0.21199465,94342.0,94341.0,0.35064]
[1746465564583,0.21199245,94343.0,94341.0,0.35064]
[1746465564786,0.01662188,94342.0,94341.0,0.56263624]
[1746465565925,0.01662188,94342.0,94341.0,0.5676369]
[1746465566231,0.01762188,94342.0,94341.0,0.5686369]
[1746465566529,0.01662188,94342.0,94341.0,0.5666369]
[1746465566684,0.0105995,94344.0,94342.0,0.21199314]
[1746465566885,0.0105995,94344.0,94342.0,0.21099314]
[1746465567108,0.22258764,94345.0,94343.0,0.21199233]
[1746465568278,0.001,94344.0,94343.0,0.21199233]
[1746465568716,0.01059928,94346.0,94344.0,0.21198975]
[1746465568916,0.22258266,94347.0,94344.0,0.21198975]
[1746465569131,0.001,94345.0,94344.0,0.21198975]
[1746465569635,0.01059917,94347.0,94345.0,0.21098713]
[1746465569808,0.001,94346.0,94345.0,0.21098713]
[1746465570194,0.01762169,94346.0,94345.0,0.21098713]
[1746465570427,0.01762169,94346.0,94345.0,0.20998713]
[1746465570630,0.01762169,94346.0,94345.0,0.21198791]
[1746465570856,0.01762169,94346.0,94345.0,0.22758791]
[1746465571055,0.01662169,94346.0,94345.0,0.22758791]
[1746465571281,0.01662169,94346.0,94345.0,0.22658791]
[1746465571431,0.01662169,94346.0,94345.0,0.24248791]
[1746465571834,0.01662169,94346.0,94345.0,0.24548791]
[1746465572081,0.01762169,94346.0,94345.0,0.24948791]
[1746465572493,0.01762169,94346.0,94345.0,0.33455576]
[1746465573108,0.01762169,94346.0,94345.0,0.26402876]
[1746465573694,0.01762169,94346.0,94345.0,0.31200175]
[1746465573865,0.01762169,94346.0,94345.0,0.30900175]
[1746465574072,0.01662169,94346.0,94345.0,0.30500175]
[1746465574291,0.01662169,94346.0,94345.0,0.31100175]
[1746465574498,0.01762169,94346.0,94345.0,0.31100175]
[1746465574885,0.01662169,94346.0,94345.0,0.30500175]
[1746465575092,0.01762169,94346.0,94345.0,0.31300175]
[1746465575656,0.01762169,94346.0,94345.0,0.31800175]
[1746465575869,0.01762169,94346.0,94345.0,0.73210175]
[1746465576077,0.01762169,94346.0,94345.0,0.73110175]
[1746465576275,0.00013014,94360.0,94359.0,0.21195646]
[1746465577659,0.00013014,94360.0,94359.0,0.21095646]
[1746465578158,0.00013014,94360.0,94359.0,0.22174532]
[1746465578307,0.00013014,94360.0,94359.0,0.22574532]
[1746465578516,0.00013014,94360.0,94359.0,0.36092878]
[1746465578744,0.00113014,94360.0,94359.0,0.61658617]
[1746465578944,0.00113014,94360.0,94359.0,1.03568617]
[1746465579608,0.00113014,94360.0,94359.0,1.44468617]
[1746465579785,0.00113014,94360.0,94359.0,1.44068617]
[1746465579987,0.00213014,94360.0,94359.0,1.56209284]
[1746465580527,0.00113014,94360.0,94359.0,1.55709284]
[1746465580935,0.00213014,94360.0,94359.0,1.56409284]
[1746465581348,0.00013014,94360.0,94359.0,1.54909284]
[1746465581484,0.00013014,94360.0,94359.0,1.14009284]
[1746465581696,0.00213014,94360.0,94359.0,1.15909284]
[1746465582107,0.00213014,94360.0,94359.0,1.56809284]
[1746465582740,0.00213014,94360.0,94359.0,1.56909284]
[1746465582913,0.00113014,94360.0,94359.0,1.55909284]
[1746465583122,0.00213014,94360.0,94359.0,1.6169838]
[1746465583520,1e-08,94367.0,94366.0,0.55194074]
[1746465583725,0.002,94409.0,94408.0,0.21184645]
[1746465583987,0.0020531,94409.0,94408.0,0.21184645]
[1746465584221,0.01866495,94409.0,94408.0,0.21084645]
[1746465584967,0.01966495,94409.0,94408.0,0.21184645]
[1746465585164,0.01866495,94409.0,94408.0,0.21184645]
[1746465585682,0.01866495,94409.0,94408.0,0.20484645]
[1746465586029,0.01866495,94409.0,94408.0,0.21284645]
[1746465588295,0.01866495,94409.0,94408.0,0.001]
[1746465588681,0.03476495,94409.0,94408.0,0.001]
[1746465589182,0.03476495,94409.0,94408.0,0.21284645]
[1746465592629,0.03476495,94409.0,94408.0,0.20584645]
[1746465593455,0.01866495,94409.0,94407.0,0.2118467]
[1746465593616,0.22243877,94408.0,94405.0,0.21185255]
[1746465593813,0.02925716,94409.0,94405.0,0.21185255]
[1746465594818,0.02925716,94409.0,94405.0,0.21385255]
[1746465595121,0.03125716,94409.0,94406.0,0.21184886]
[1746465595263,0.04755716,94409.0,94406.0,0.21184886]
[1746465595494,0.01059243,94407.0,94405.0,0.002]
[1746465595692,0.2224415,94407.0,94405.0,0.002]
[1746465596095,0.01059243,94407.0,94405.0,0.21385256]
[1746465596651,0.01059243,94407.0,94405.0,0.21185256]
[1746465597207,0.0158,94406.0,94402.0,0.01454085]
[1746465597403,0.01059254,94406.0,94404.0,0.01454085]
[1746465597627,0.21185318,94405.0,94404.0,0.01454085]
[1746465598148,0.01059254,94406.0,94403.0,0.01454085]
[1746465598641,0.01059254,94406.0,94405.0,0.001]
[1746465599006,0.001,94405.0,94403.0,0.01454085]
[1746465599239,0.22244348,94406.0,94403.0,0.22639675]
[1746465599440,0.23794348,94406.0,94403.0,0.22639675]
[1746465599793,0.21185991,94402.0,94401.0,0.3506]
[1746465600002,0.24295991,94402.0,94401.0,0.3506]
[1746465600953,0.24295991,94402.0,94401.0,0.3536]
[1746465601396,0.24395991,94402.0,94401.0,0.3536]
[1746465603490,0.001,94402.0,94401.0,0.56546216]
[1746465604497,0.001,94402.0,94401.0,0.3536]
[1746465604880,0.001,94402.0,94401.0,0.56546216]
[1746465606838,0.001,94402.0,94401.0,0.55846216]
[1746465608769,0.001,94402.0,94401.0,0.64708397]
[1746465608970,0.0020531,94409.0,94408.0,0.2263873]
[1746465610168,0.0020531,94409.0,94408.0,0.2303873]
[1746465610679,0.0020531,94409.0,94408.0,0.2263873]
[1746465610889,0.0020531,94409.0,94408.0,0.2621873]
[1746465611088,0.0020531,94409.0,94408.0,0.2631873]
[1746465611287,0.0020531,94409.0,94408.0,0.36770759]
[1746465611704,0.0020531,94409.0,94408.0,0.36970759]
[1746465612307,0.01866171,94409.0,94408.0,0.36970759]
[1746465612511,0.01866171,94409.0,94408.0,0.2621873]
[1746465612755,0.01866171,94409.0,94408.0,0.2661873]
[1746465613642,0.01866171,94409.0,94408.0,0.2611873]
[1746465614141,0.01866171,94409.0,94408.0,0.2641873]
[1746465614891,0.01866171,94409.0,94408.0,0.6832873]
[1746465616538,0.01866171,94409.0,94408.0,1.09230759]
[1746465616737,0.01866171,94409.0,94408.0,1.19780759]
[1746465617181,0.01866171,94409.0,94408.0,1.0922873]
[1746465619057,0.01866171,94409.0,94408.0,1.4322873]
[1746465619489,0.01866171,94409.0,94408.0,1.0232873]
[1746465620094,0.002,94429.0,94428.0,0.21180158]
[1746465620255,0.00245523,94429.0,94428.0,0.22634243]
[1746465621216,0.00345523,94429.0,94428.0,0.22634243]
[1746465621400,0.00345523,94429.0,94428.0,0.57670243]
[1746465621806,0.00445523,94429.0,94428.0,0.57670243]
[1746465622907,0.02106244,94429.0,94428.0,0.57670243]
[1746465623807,0.02106244,94429.0,94428.0,0.56970243]
[1746465624210,0.02106244,94429.0,94428.0,0.57670243]
[1746465626680,0.00445523,94429.0,94428.0,0.57670243]
[1746465631347,0.00445523,94429.0,94428.0,0.56216158]
[1746465631794,0.00445523,94429.0,94428.0,0.57189912]
[1746465636870,0.02106375,94429.0,94428.0,0.57189912]
[1746465638276,0.00445523,94429.0,94428.0,0.57189912]
[1746465638944,0.00445523,94429.0,94428.0,0.56489912]
[1746465639144,0.00445523,94429.0,94428.0,0.35309754]
[1746465639351,0.00445523,94429.0,94428.0,0.56489912]
[1746465641137,0.02106271,94429.0,94428.0,0.56489912]
[1746465643263,0.26396205,94429.0,94428.0,0.35309754]
[1746465643814,0.05216271,94429.0,94428.0,0.56489912]
[1746465644010,0.05216271,94429.0,94428.0,0.35309754]
[1746465644127,0.05216271,94429.0,94428.0,0.56489912]
[1746465644335,0.03656271,94429.0,94428.0,0.56489912]
[1746465644535,0.02106271,94429.0,94428.0,0.56489912]
[1746465645367,0.02106271,94429.0,94428.0,0.22153912]
[1746465646003,0.23286205,94429.0,94428.0,0.00273754]
[1746465646356,0.02106271,94429.0,94428.0,0.21978437]
[1746465650354,0.02106271,94429.0,94428.0,0.00798279]
[1746465650561,0.02106271,94429.0,94428.0,0.21978437]
[1746465653975,0.02106271,94429.0,94428.0,0.00798279]
[1746465655279,0.02106271,94429.0,94428.0,0.02252364]
[1746465655482,0.02106271,94429.0,94428.0,0.23432522]
[1746465656064,0.00445523,94429.0,94428.0,0.23432522]
[1746465656644,0.00345523,94429.0,94428.0,0.23432522]
[1746465656982,0.00245523,94429.0,94428.0,0.23532522]
[1746465657738,0.00245523,94429.0,94428.0,0.23632522]
[1746465658926,0.00245523,94429.0,94428.0,0.28426643]
[1746465659668,0.00245523,94429.0,94428.0,0.63458643]
[1746465664308,0.00245523,94429.0,94428.0,0.66628643]
[1746465664915,0.00245523,94429.0,94428.0,0.63458643]
[1746465665520,0.00245523,94429.0,94428.0,0.66628643]
[1746465665699,0.00245523,94429.0,94428.0,0.65038643]
[1746465665905,0.00245523,94429.0,94428.0,0.63458643]
[1746465669743,0.0166063,94429.0,94428.0,1.00498643]
[1746465670440,0.0166063,94429.0,94428.0,1.00398643]
[1746465670650,0.0166063,94429.0,94428.0,1.00298643]
[1746465670853,0.0166063,94429.0,94428.0,1.00698643]
[1746465671006,0.0166063,94429.0,94428.0,1.05679704]
[1746465671227,0.0166063,94429.0,94428.0,1.06179704]
[1746465671432,0.0166063,94429.0,94428.0,1.06079704]
[1746465671635,0.0166063,94429.0,94428.0,1.06679704]
[1746465673910,0.2378077,94464.0,94428.0,1.06679704]
[1746465673911,0.2378077,94464.0,94448.0,0.22629758]
[1746465674238,0.00213651,94449.0,94448.0,0.24955461]
[1746465674447,0.01873995,94449.0,94448.0,0.3550749]
[1746465675370,0.01873995,94449.0,94448.0,0.36402932]
[1746465675592,0.01873995,94449.0,94448.0,0.34962932]
[1746465676140,0.01873995,94449.0,94448.0,0.24410903]
[1746465680299,0.01873995,94449.0,94448.0,0.78830903]
[1746465680503,0.01873995,94449.0,94448.0,1.10380903]
[1746465680705,1e-08,94449.0,94448.0,1.44380903]
[1746465680916,0.002,94469.0,94468.0,0.22625275]
[1746465681091,0.002,94469.0,94468.0,0.31638516]
[1746465681287,0.002,94469.0,94468.0,0.3234181]
[1746465681856,0.002,94469.0,94468.0,0.33416736]
[1746465683501,0.002,94469.0,94468.0,0.33616736]
[1746465684108,0.002,94469.0,94468.0,0.33716736]
[1746465684308,0.002,94469.0,94468.0,0.24745551]
[1746465687531,0.01859977,94469.0,94468.0,0.24745551]
[1746465689544,0.01859977,94469.0,94468.0,0.59765551]
[1746465695400,0.01859977,94469.0,94468.0,0.37140276]
[1746465695401,0.04989977,94469.0,94468.0,0.37140276]
[1746465695863,0.01859977,94469.0,94468.0,0.37140276]
[1746465696042,0.01859977,94469.0,94468.0,0.58311466]
[1746465696776,0.01859977,94469.0,94468.0,0.58211466]
[1746465696990,0.01859977,94469.0,94468.0,0.58011466]
[1746465698683,0.002,94469.0,94468.0,0.58011466]
[1746465699110,0.002,94469.0,94468.0,0.62927587]
[1746465700895,0.002,94469.0,94468.0,0.58011466]
[1746465702507,0.002,94469.0,94468.0,0.58111466]
[1746465702962,0.01859956,94469.0,94468.0,0.58111466]
[1746465704498,0.01859956,94469.0,94468.0,0.58011466]
[1746465707922,0.002,94469.0,94468.0,0.58011466]
[1746465710686,0.002,94469.0,94468.0,0.58111466]
[1746465711781,0.01859988,94469.0,94468.0,0.58111466]
[1746465713634,0.01859988,94469.0,94468.0,0.62238765]
[1746465713812,0.01859988,94469.0,94468.0,0.58111466]
[1746465715050,0.01859988,94469.0,94468.0,0.59565551]
[1746465715816,0.01859988,94469.0,94468.0,0.62595551]
[1746465716612,0.002,94469.0,94468.0,0.62595551]
[1746465716828,0.002,94469.0,94468.0,0.7011758]
[1746465717947,0.002,94469.0,94468.0,0.7314758]
[1746465718356,0.002,94469.0,94468.0,1.0714758]
[1746465718560,0.002,94489.0,94488.0,0.21166709]
[1746465718756,0.00213649,94489.0,94488.0,0.21166709]
[1746465718968,0.00213649,94489.0,94488.0,0.30564433]
[1746465719742,0.01873421,94489.0,94488.0,0.30564433]
[1746465720473,0.01973421,94489.0,94488.0,0.30564433]
[1746465720872,0.01973421,94489.0,94488.0,0.21885898]
[1746465721081,0.02173421,94489.0,94488.0,0.23339983]
[1746465721847,0.0020204,94498.0,94497.0,0.22618778]
[1746465722053,1e-08,94498.0,94497.0,0.25738778]
[1746465722195,0.002,94509.0,94508.0,0.21162229]
[1746465722537,0.002,94509.0,94508.0,0.31326102]
[1746465722873,0.002,94509.0,94508.0,0.34446102]
[1746465723413,0.002,94509.0,94508.0,0.76356102]
[1746465724047,0.002,94509.0,94508.0,0.770071]
[1746465724272,0.002,94509.0,94508.0,0.78265788]
[1746465727356,0.002,94509.0,94508.0,1.19165788]
[1746465727556,0.002,94509.0,94508.0,1.17625788]
[1746465728179,0.002,94509.0,94508.0,1.19245788]
[1746465729967,0.01859108,94509.0,94508.0,1.19245788]
[1746465731926,0.01859108,94509.0,94508.0,1.17625788]
[1746465732183,0.01859108,94509.0,94508.0,1.16045788]
[1746465732803,0.01560747,94509.0,94508.0,1.16045788]
[1746465733836,0.01560747,94509.0,94508.0,1.17575788]
[1746465734144,0.01560747,94509.0,94508.0,1.19095788]
[1746465734694,0.01560747,94509.0,94508.0,1.54099788]
[1746465735499,0.01156053,94509.0,94508.0,1.88099788]
[1746465735715,0.002,94529.0,94528.0,0.22611837]
[1746465735931,0.00245506,94529.0,94528.0,0.63511837]
[1746465736121,0.00245506,94529.0,94528.0,0.64166437]
[1746465736325,0.00245506,94529.0,94528.0,0.73587154]
[1746465737325,0.00245506,94529.0,94528.0,0.73987154]
[1746465738500,0.00245506,94529.0,94528.0,1.17447154]
[1746465739111,0.00245506,94529.0,94528.0,1.08807525]
[1746465739552,0.00245506,94529.0,94528.0,1.43807525]
[1746465741589,0.00245506,94529.0,94528.0,1.45337525]
[1746465742040,0.00245506,94529.0,94528.0,1.79337525]
[1746465744533,0.00245506,94529.0,94528.0,1.79137525]
[1746465744726,0.00245506,94529.0,94528.0,1.90089554]
[1746465746060,7e-05,94544.0,94543.0,0.21050513]
[1746465746260,0.0002064,94544.0,94543.0,0.22504598]
[1746465746455,0.0002064,94544.0,94543.0,0.23146866]
[1746465747669,0.0002064,94544.0,94543.0,0.23346866]
[1746465747887,0.0002064,94544.0,94543.0,0.32339589]
[1746465749831,0.0002064,94544.0,94543.0,0.33387939]
[1746465750936,0.01679345,94544.0,94543.0,0.33387939]
[1746465752649,0.03659378,94544.0,94543.0,0.24495216]
[1746465753992,0.03659378,94544.0,94543.0,0.24295216]
[1746465754224,0.03659378,94544.0,94543.0,0.24495216]
[1746465754406,0.0034533,94544.0,94543.0,0.24195216]
[1746465754840,0.02004037,94544.0,94543.0,0.24195216]
[1746465755068,0.02004037,94544.0,94543.0,0.28291767]
[1746465755498,0.01658707,94544.0,94543.0,0.28291767]
[1746465755742,0.01658707,94544.0,94543.0,0.28591767]
[1746465756095,0.01658707,94544.0,94543.0,0.28491767]
[1746465756559,0.01658707,94544.0,94543.0,0.28591767]
[1746465756770,0.002,94549.0,94548.0,0.21153276]
[1746465756984,0.0325,94549.0,94548.0,0.21153276]
[1746465757197,0.0325,94549.0,94548.0,0.21779724]
[1746465758132,0.0325,94549.0,94548.0,0.21079724]
[1746465758859,0.0325,94549.0,94548.0,0.56071724]
[1746465759075,0.002,94549.0,94548.0,0.56171724]
[1746465759724,0.01858671,94549.0,94548.0,0.56171724]
[1746465761021,0.01858671,94549.0,94548.0,0.35718448]
[1746465761022,0.04988671,94549.0,94548.0,0.35718448]
[1746465761483,0.04988671,94549.0,94548.0,0.56871724]
[1746465761933,0.04988671,94549.0,94548.0,0.67423753]
[1746465762151,0.01858671,94549.0,94548.0,0.67423753]
[1746465762366,0.01858671,94549.0,94548.0,0.68877838]
[1746465763918,0.01858671,94549.0,94548.0,0.58325809]
[1746465765454,0.01858671,94549.0,94548.0,0.58251939]
[1746465765678,0.002,94549.0,94548.0,0.58251939]
[1746465766357,0.002,94549.0,94548.0,0.61331939]
[1746465767400,0.002,94549.0,94548.0,0.61431939]
[1746465767631,0.002,94549.0,94548.0,0.71983968]
[1746465767841,0.242,94550.0,94549.0,0.22607137]
[1746465768043,0.242,94550.0,94549.0,0.24207137]
[1746465768219,0.242,94550.0,94549.0,0.2576502]
[1746465768594,0.242,94550.0,94549.0,0.2262502]
[1746465768799,0.242,94550.0,94549.0,0.33177049]
[1746465769015,0.25858433,94550.0,94549.0,0.33177049]
[1746465769563,0.25858433,94550.0,94549.0,0.33377049]
[1746465769679,0.25858433,94550.0,94549.0,0.2282502]
[1746465771324,0.25858433,94550.0,94549.0,0.27580008]
[1746465772319,0.25858433,94550.0,94549.0,0.26880008]
[1746465772951,0.25858433,94550.0,94549.0,0.27365351]
[1746465775262,0.22544684,94550.0,94549.0,0.27365351]
[1746465775662,0.22544684,94550.0,94549.0,0.3791738]
[1746465776585,0.20886251,94550.0,94549.0,0.33162392]
[1746465776935,0.20886251,94550.0,94549.0,0.22610363]
[1746465779415,0.20886251,94550.0,94549.0,0.21910363]
[1746465780549,0.24046251,94550.0,94549.0,0.21910363]
[1746465783031,0.24046251,94550.0,94549.0,0.20456278]
[1746465784663,0.20886251,94550.0,94549.0,0.20456278]
[1746465784872,0.20886251,94550.0,94549.0,0.22296305]
[1746465785230,0.20886251,94550.0,94549.0,0.2375039]
[1746465786457,0.20886251,94550.0,94549.0,0.28518024]
[1746465786685,0.20886251,94550.0,94549.0,0.27818024]
[1746465786880,0.22544644,94550.0,94549.0,0.27818024]
[1746465787221,0.22544644,94550.0,94549.0,0.25977997]
[1746465787695,0.25724644,94550.0,94549.0,0.25977997]
[1746465787914,0.25724644,94550.0,94549.0,0.24523912]
[1746465789361,0.25724644,94550.0,94549.0,0.26623912]
[1746465791092,0.25724644,94550.0,94549.0,0.31609435]
[1746465793587,0.25724644,94550.0,94549.0,0.30909435]
[1746465793771,0.25724644,94550.0,94549.0,0.31331034]
[1746465796801,0.28617304,94550.0,94549.0,0.10177982]
[1746465796998,0.4521908,94550.0,94549.0,0.10177982]
[1746465797400,0.4521908,94550.0,94549.0,0.09753157]
[1746465798052,0.4541908,94550.0,94549.0,0.09753157]
[1746465798248,0.4551908,94550.0,94549.0,0.09753157]
[1746465798681,0.4571908,94550.0,94549.0,0.09753157]
[1746465798915,0.4541908,94550.0,94549.0,0.10186927]
[1746465799116,0.4571908,94550.0,94549.0,0.10186927]
[1746465799683,0.4571908,94550.0,94549.0,0.09753157]
[1746465800435,0.24213052,94549.0,94548.0,0.34918448]
[1746465800840,0.24213052,94549.0,94548.0,0.34218448]
[1746465801302,0.2587173,94549.0,94548.0,0.34218448]
[1746465801509,0.28056164,94549.0,94548.0,0.34218448]
[1746465801715,0.28356164,94549.0,94548.0,0.34218448]
[1746465801915,0.28156164,94549.0,94548.0,0.34218448]
[1746465802297,0.28556164,94549.0,94548.0,0.34218448]
[1746465802866,0.2657173,94549.0,94548.0,0.34218448]
[1746465807948,0.2657173,94549.0,94548.0,0.33518448]
[1746465810160,0.05418678,94549.0,94548.0,0.33518448]
[1746465810559,0.05418678,94549.0,94548.0,0.54671724]
[1746465810755,0.05742739,94549.0,94548.0,0.54671724]
[1746465811135,0.05342739,94549.0,94548.0,0.33518448]
[1746465811323,0.05142739,94549.0,94548.0,0.33518448]
[1746465811550,0.24323288,94548.0,94546.0,0.21153712]
[1746465811776,0.0317,94547.0,94546.0,0.21153712]
[1746465812439,0.02082739,94549.0,94546.0,0.21153712]
[1746465812613,0.001,94549.0,94548.0,0.21153276]
[1746465812816,0.01758597,94549.0,94548.0,0.21153276]
[1746465813211,0.03298597,94549.0,94548.0,0.21153276]